bitfinex/quotes_ETHUSD_20241122
["timestamp","ask_amount","ask_price","bid_price","bid_amount"]
[1732281298865,2.99977,3333.6,3332.7,0.1466]
[1732281299403,3.0,3333.4,3332.7,0.1466]
[1732281299560,3.00018,3333.2,3332.7,0.1466]
[1732281299975,3.00001,3333.4,3332.7,0.1466]
[1732281300199,0.03744579,3333.6,3332.7,0.1466]
[1732281300358,2.99971,3333.7,3332.8,0.03000011]
[1732281300553,2.99981,3333.6,3332.9,0.1466]
[1732281300788,3.00012,3333.2,3332.9,0.1466]
[1732281301188,3.00039,3332.9,3332.5,0.1466]
[1732281301494,3.52953623,3333.3,3332.5,0.1466]
[1732281301495,3.00014,3333.2,3332.5,0.1466]
[1732281301787,3.0003,3333.0,3332.5,0.1466]
[1732281302171,2.99997,3333.4,3332.5,0.1466]
[1732281302358,3.00005,3333.3,3332.5,0.1466]
[1732281302556,0.03744579,3333.5,3332.5,0.1466]
[1732281302806,2.99994,3333.4,3332.5,0.1466]
[1732281302959,2.99983,3333.6,3332.5,0.1466]
[1732281302960,2.9996,3333.8,3332.5,0.1466]
[1732281303173,2.9996,3333.8,3331.6,3.52953623]
[1732281303174,3.52953623,3334.1,3332.7,0.1466]
[1732281303360,2.99955,3333.9,3332.8,0.02999847]
[1732281303720,2.99915,3334.3,3332.9,0.1466]
[1732281304005,2.99928,3334.2,3333.1,0.1466]
[1732281304197,2.99915,3334.3,3333.3,0.1466]
[1732281304366,2.99881,3334.7,3333.5,0.1466]
[1732281304578,2.99888,3334.6,3333.7,0.1466]
[1732281304781,2.99886,3334.6,3333.7,0.1466]
[1732281305085,3.52953623,3334.9,3333.4,0.1466]
[1732281305272,2.99904,3334.4,3333.6,0.1466]
[1732281305478,6.52817623,3334.9,3333.6,0.1466]
[1732281305680,4.33833623,3335.3,3333.8,0.1466]
[1732281306024,2.99866,3334.9,3333.8,0.17658809]
[1732281306159,2.99859,3335.0,3333.9,0.1466]
[1732281306358,2.99859,3335.0,3334.0,0.02998792]
[1732281306599,2.99859,3335.0,3334.1,0.1466]
[1732281306801,0.03744579,3334.9,3334.1,0.1466]
[1732281306975,2.99882,3334.7,3334.1,0.1466]
[1732281307499,2.99862,3334.9,3334.1,0.1466]
[1732281307658,0.03744579,3334.8,3334.1,0.1466]
[1732281307859,2.99868,3334.8,3334.1,0.1466]
[1732281308498,2.99853,3335.0,3334.1,0.1466]
[1732281308725,2.99834,3335.2,3334.1,0.1466]
[1732281309070,2.99855,3335.0,3334.1,0.1466]
[1732281309300,2.99894,3334.6,3334.1,0.1466]
[1732281309798,2.99893,3334.6,3334.1,0.1466]
[1732281310103,2.99959,3333.8,3333.5,0.1466]
[1732281310304,2.99947,3334.0,3333.5,0.1466]
[1732281310460,3.54952,3333.9,3333.5,0.1466]
[1732281310654,0.55,3333.9,3333.5,0.1466]
[1732281311167,0.55,3334.1,3333.5,0.1466]
[1732281311493,0.55,3333.8,3333.5,0.1466]
[1732281311642,3.54963,3333.8,3333.5,0.1466]
[1732281312041,2.99942,3334.0,3333.5,0.1466]
[1732281312244,3.5495,3333.9,3333.5,0.1466]
[1732281312539,2.99968,3333.7,3333.5,0.1466]
[1732281312780,0.55,3333.6,3333.5,0.1466]
[1732281313178,2.99998,3333.4,3333.1,0.1466]
[1732281313415,0.55,3333.3,3333.1,0.1466]
[1732281313891,0.55,3333.8,3333.1,0.1466]
[1732281314101,2.99984,3333.6,3333.1,0.1466]
[1732281314263,0.55,3333.6,3333.1,0.1466]
[1732281314469,2.99933,3334.1,3333.2,0.02999749]
[1732281314704,0.55,3334.0,3333.2,0.02999749]
[1732281314880,0.55,3334.0,3333.2,0.32969749]
[1732281315196,0.55,3333.8,3333.1,0.1466]
[1732281315509,0.55,3333.8,3333.2,0.2997]
[1732281317604,0.55,3333.0,3332.8,0.4463]
[1732281317893,3.00026,3333.1,3332.8,0.4463]
[1732281318092,0.55,3333.0,3332.8,0.4463]
[1732281318430,0.55,3333.2,3332.8,0.4463]
[1732281318691,6.52992623,3332.9,3332.5,0.2997]
[1732281318857,0.55,3332.8,3332.5,0.2997]
[1732281319053,6.52959623,3333.3,3332.5,0.2997]
[1732281319253,0.55,3333.2,3332.6,0.1466]
[1732281319999,0.55,3333.5,3332.6,0.1466]
[1732281320298,1.3282,3333.2,3331.9,0.2997]
[1732281320497,3.00053,3332.8,3331.9,0.2997]
[1732281320795,3.55091,3332.4,3331.8,0.1466]
[1732281321356,0.55,3332.7,3331.9,0.2997]
[1732281321780,0.55,3332.7,3332.0,0.03000826]
[1732281321975,0.55,3332.5,3331.9,0.2997]
[1732281322195,0.55,3332.3,3331.9,0.2997]
[1732281322578,3.55099,3332.3,3331.9,0.2997]
[1732281322780,0.55,3332.4,3331.9,0.2997]
[1732281323214,3.58833579,3332.4,3331.9,0.2997]
[1732281323445,0.55,3332.1,3331.8,0.1466]
[1732281323595,4.07953623,3332.1,3331.5,0.1466]
[1732281323794,0.55,3331.9,3331.5,0.1466]
[1732281324107,0.55,3332.0,3331.5,0.1466]
[1732281324615,0.55,3332.0,3331.6,0.03001266]
[1732281324783,0.55,3332.3,3331.5,0.4463]
[1732281325381,0.55,3332.1,3331.5,0.1466]
[1732281325827,0.55,3331.9,3331.5,0.1466]
[1732281326041,3.55129,3331.9,3331.5,0.1466]
[1732281326315,0.55,3331.9,3331.5,0.1466]
[1732281326687,0.55,3332.0,3331.5,0.1466]
[1732281327012,0.55,3331.9,3331.5,0.1466]
[1732281327697,0.546,3331.9,3331.5,0.1466]
[1732281327893,3.0006,3332.7,3331.2,0.03001274]
[1732281327894,4.28373623,3332.1,3331.2,0.1466]
[1732281328103,3.00158,3331.6,3331.2,0.1466]
[1732281328416,3.00158,3331.6,3330.4,0.2997]
[1732281328417,3.52953623,3331.3,3330.4,0.2997]
[1732281328634,6.53137623,3331.3,3330.4,0.2997]
[1732281328795,3.52953623,3331.3,3330.4,0.32971883]
[1732281328995,6.53136623,3331.3,3330.4,0.32971883]
[1732281329197,3.52953623,3331.3,3330.4,0.32971883]
[1732281329428,3.00159,3331.6,3330.5,0.4463]
[1732281329598,3.52953623,3331.7,3330.6,0.03001885]
[1732281329599,6.53100623,3331.7,3330.6,0.03001885]
[1732281329800,0.55,3331.6,3330.7,0.1466]
[1732281330009,0.55,3331.6,3330.5,0.2997]
[1732281330010,3.55129,3331.9,3330.9,0.1466]
[1732281330220,3.55129,3331.9,3331.0,0.0300165]
[1732281330933,3.00138,3331.8,3330.9,0.4463]
[1732281331142,3.5513,3331.9,3330.9,0.4463]
[1732281331736,0.55,3331.9,3330.9,0.4463]
[1732281332106,3.55129,3331.9,3330.9,0.4463]
[1732281332308,0.55,3331.7,3330.9,0.4463]
[1732281332643,4.07953623,3331.7,3330.9,0.1466]
[1732281332803,0.55,3331.5,3330.9,0.1466]
[1732281333592,0.55,3331.6,3330.9,0.1466]
[1732281333876,0.55,3332.0,3331.0,0.03001609]
[1732281334173,0.55,3332.0,3331.1,0.1466]
[1732281334559,0.55,3332.0,3331.2,0.03001376]
[1732281334881,0.55,3332.4,3331.3,0.4463]
[1732281335038,0.55,3332.4,3331.4,0.03001288]
[1732281335381,3.52953623,3332.5,3331.7,0.1466]
[1732281335741,3.52953623,3332.5,3331.7,0.4463]
[1732281335940,6.53035623,3332.5,3331.7,0.4463]
[1732281336270,0.7505,3333.0,3331.8,0.03000915]
[1732281336485,3.52953623,3333.2,3332.1,0.1466]
[1732281336771,3.52953623,3333.2,3332.2,0.32970481]
[1732281336973,3.52953623,3333.2,3332.4,0.2997]
[1732281337172,6.77863,3333.7,3332.5,0.4463]
[1732281337173,6.52929623,3333.6,3332.5,0.4463]
[1732281337544,3.52953623,3333.6,3332.7,0.2997]
[1732281337766,3.52953623,3333.6,3332.8,0.03000187]
[1732281337973,3.52953623,3333.6,3332.7,0.2997]
[1732281337974,3.52953623,3333.6,3332.9,0.4463]
[1732281338638,3.52953623,3333.6,3332.9,0.47629805]
[1732281338840,3.52953623,3333.6,3332.9,0.4463]
[1732281340374,3.52953623,3333.6,3332.9,0.1466]
[1732281341115,3.58731579,3333.5,3332.9,0.1466]
[1732281341383,3.00031,3333.0,3332.4,0.1466]
[1732281341685,3.52953623,3332.8,3332.4,0.1466]
[1732281341900,3.52953623,3333.2,3332.4,0.1466]
[1732281342993,3.52953623,3333.2,3331.8,2.42660142]
[1732281343287,3.52953623,3333.6,3331.9,0.3]
[1732281343487,0.55,3333.8,3331.8,0.02]
[1732281343645,3.52953623,3334.0,3332.2,0.01]
[1732281343990,4.31003623,3334.4,3332.5,0.01]
[1732281344146,3.52953623,3334.4,3332.5,0.01]
[1732281346401,3.52953623,3334.8,3332.9,0.01]
[1732281346693,0.35295362,3334.7,3332.9,0.01]
[1732281346877,3.52953623,3334.8,3333.0,0.01]
[1732281347468,0.03748532,3334.7,3333.0,0.01]
[1732281347668,3.52953623,3334.8,3333.0,0.01]
[1732281348168,3.52953623,3335.2,3333.3,0.01]
[1732281349575,0.55,3335.1,3333.3,0.01]
[1732281350418,0.55,3335.1,3333.0,0.2997]
[1732281350419,3.52953623,3334.8,3333.0,0.2997]
[1732281350712,0.65656592,3334.7,3333.0,0.3097]
[1732281350910,0.0374861,3334.6,3333.0,0.2997]
[1732281351082,0.65656592,3334.7,3333.0,0.3097]
[1732281351414,1.01834422,3334.6,3332.8,0.01]
[1732281351612,1.01834422,3334.6,3333.0,0.2997]
[1732281351921,3.52953623,3334.4,3333.0,0.2997]
[1732281352119,0.03749142,3334.3,3333.0,0.2997]
[1732281352267,3.52953623,3334.4,3333.0,0.2997]
[1732281352710,3.52953623,3334.4,3332.6,0.2997]
[1732281354608,6.52863623,3334.4,3332.6,0.2997]
[1732281354812,0.95274962,3334.3,3332.6,0.2997]
[1732281355535,3.52953623,3334.0,3332.9,3.0]
[1732281355675,3.52953623,3333.6,3331.9,0.2997]
[1732281355880,3.5670348,3333.6,3331.9,0.2997]
[1732281356142,3.52953623,3333.6,3331.9,0.2997]
[1732281356320,9.52901623,3334.0,3331.9,0.2997]
[1732281356615,3.52953623,3334.0,3332.1,0.01]
[1732281357525,0.55,3334.3,3332.6,0.2997]
[1732281357809,0.03749232,3334.2,3332.6,0.2997]
[1732281358383,3.03671232,3334.2,3332.4,0.01]
[1732281358581,1.34902318,3334.2,3332.4,0.01]
[1732281358780,0.03749232,3334.2,3332.4,0.01]
[1732281358994,0.55,3334.3,3332.4,0.01]
[1732281359381,3.03676236,3334.2,3332.4,0.01]
[1732281359687,0.03749236,3334.2,3332.4,0.01]
[1732281359903,0.03749236,3334.2,3332.5,0.2997]
[1732281360108,0.55,3334.3,3332.5,0.2997]
[1732281360397,0.03749238,3334.2,3332.5,0.2997]
[1732281360594,3.54956,3333.9,3332.5,0.2997]
[1732281360800,0.7871,3333.9,3332.5,0.2997]
[1732281361028,0.55,3333.9,3332.6,0.2997]
[1732281361299,0.55,3333.7,3332.6,0.2997]
[1732281361527,3.03726966,3333.6,3332.6,0.2997]
[1732281361700,2.99977,3333.6,3332.6,0.2997]
[1732281361908,0.55,3333.8,3332.0,0.01]
[1732281362102,0.55,3333.9,3332.0,0.01]
[1732281362303,1.00783962,3333.8,3332.0,0.01]
[1732281362531,0.55,3333.9,3332.0,0.01]
[1732281362897,6.54915,3334.3,3332.1,3.2997]
[1732281363122,3.55,3334.3,3332.1,3.2997]
[1732281363998,3.0,3334.3,3332.3,0.3097]
[1732281364610,3.52953623,3334.8,3332.7,0.01]
[1732281364798,3.52953623,3334.8,3332.9,0.01]
[1732281366449,0.03748555,3334.7,3332.9,0.01]
[1732281366610,3.52953623,3334.8,3332.9,0.75925657]
[1732281366801,0.58748736,3334.7,3333.0,0.2997]
[1732281367311,0.55,3334.7,3333.0,0.2997]
[1732281367526,3.52953623,3334.8,3333.0,0.2997]
[1732281367735,0.55,3335.1,3332.9,3.3097]
[1732281368049,0.55,3335.1,3333.1,0.2997]
[1732281368656,3.52953623,3334.8,3333.1,0.2997]
[1732281368826,3.56702183,3334.8,3332.9,0.01]
[1732281369031,3.52953623,3334.8,3332.9,0.01]
[1732281370652,0.55,3335.1,3333.0,0.01]
[1732281370949,0.55,3335.1,3333.0,0.3097]
[1732281371200,0.55,3335.1,3333.2,0.2997]
[1732281371652,3.52953623,3334.7,3333.2,0.2997]
[1732281371951,4.07953623,3335.1,3333.2,0.2997]
[1732281372126,3.52953623,3335.1,3333.2,0.2997]
[1732281372719,2.73128828,3335.1,3333.2,0.2997]
[1732281373016,2.73128828,3335.1,3333.4,0.2997]
[1732281373757,2.73128828,3335.4,3333.4,3.2997]
[1732281374131,2.73128828,3335.7,3333.7,0.2997]
[1732281376759,2.73128828,3334.6,3334.5,0.29988]
[1732281377255,2.73128828,3334.6,3334.3,0.2999]
[1732281377457,2.73128828,3334.6,3334.2,0.2997]
[1732281377676,2.99872,3334.8,3332.9,0.30003]
[1732281377677,2.73128828,3334.2,3333.6,0.29997]
[1732281377965,2.73128828,3333.9,3333.5,0.29997]
[1732281378172,2.73128828,3333.6,3333.3,0.29999]
[1732281378478,2.73128828,3333.6,3333.4,0.2997]
[1732281378819,3.51968405,3333.8,3333.4,0.59968]
[1732281379236,4.31138405,3334.2,3333.7,0.29996]
[1732281379392,0.03749445,3334.1,3333.3,0.3]
[1732281379723,3.51968405,3333.8,3333.4,0.29999]
[1732281380025,1.475677,3333.0,3332.9,0.2997]
[1732281380223,1.475677,3333.0,3332.9,0.59973]
[1732281380519,1.475677,3333.0,3332.9,0.30003]
[1732281382187,1.475677,3333.0,3332.6,0.30006]
[1732281382389,1.475677,3333.0,3332.5,0.30006]
[1732281382390,0.03750433,3332.9,3332.4,0.30007]
[1732281382609,3.51968405,3332.6,3332.2,0.3001]
[1732281382925,3.51968405,3332.6,3332.3,0.30009]
[1732281383223,4.99536105,3333.0,3332.3,0.30009]
[1732281383434,5.74297875,3333.0,3332.3,0.30009]
[1732281383596,0.03750733,3332.9,3332.3,0.30009]
[1732281383795,0.55,3332.9,3332.3,0.30009]
[1732281384216,3.58790983,3332.9,3332.1,0.3001]
[1732281384532,3.51968405,3332.6,3332.1,0.30011]
[1732281385025,3.55719394,3332.6,3332.2,0.30009]
[1732281385227,3.51968405,3332.6,3332.2,0.30009]
[1732281385413,0.55,3332.9,3332.3,0.30009]
[1732281386325,0.03750986,3332.8,3332.3,0.30009]
[1732281386498,3.03798986,3332.8,3332.2,0.30009]
[1732281386697,0.55,3332.9,3332.5,0.30007]
[1732281386897,1.475677,3333.0,3332.8,0.30004]
[1732281387108,1.475677,3333.0,3332.9,0.30003]
[1732281387307,1.475677,3333.0,3332.0,0.30011]
[1732281387308,1.475677,3333.0,3332.4,0.30007]
[1732281387506,1.475677,3333.0,3331.1,3.0]
[1732281387507,1.475677,3333.0,3332.7,0.30005]
[1732281387938,1.475677,3333.0,3332.8,0.30004]
[1732281388231,1.475677,3333.0,3332.7,0.30005]
[1732281388232,1.475677,3333.0,3332.2,0.30009]
[1732281388538,1.475677,3333.0,3332.9,0.30003]
[1732281388693,1.475677,3333.0,3332.8,0.30004]
[1732281389122,1.475677,3333.0,3332.9,0.30003]
[1732281389647,1.475677,3333.0,3331.7,0.30014]
[1732281389928,1.475677,3333.0,3332.6,0.30006]
[1732281390137,1.475677,3333.0,3332.8,0.30004]
[1732281390333,1.475677,3333.0,3332.9,0.30003]
[1732281390726,1.475677,3333.0,3332.7,0.30005]
[1732281391098,1.475677,3333.0,3332.9,0.30003]
[1732281392208,1.475677,3333.0,3332.7,0.30005]
[1732281392434,1.475677,3333.0,3332.8,0.30004]
[1732281392641,1.475677,3333.0,3332.9,0.30003]
[1732281393003,1.475677,3333.0,3332.7,0.30005]
[1732281393507,1.475677,3333.0,3332.8,0.30004]
[1732281393728,1.475677,3333.0,3331.0,0.01]
[1732281393930,1.475677,3333.0,3332.8,0.30004]
[1732281394144,1.475677,3333.0,3332.9,0.30003]
[1732281394306,1.475677,3333.0,3331.9,0.30012]
[1732281394502,1.475677,3333.0,3332.8,0.30003]
[1732281394750,1.475677,3333.0,3332.7,0.30005]
[1732281394907,1.475677,3333.0,3332.6,0.30006]
[1732281395340,9.22490619,3333.0,3331.8,3.30013]
[1732281395658,9.22490619,3333.0,3332.1,0.3001]
[1732281395659,3.51968405,3332.6,3332.1,0.3001]
[1732281395801,0.03751177,3332.5,3331.9,0.30012]
[1732281396009,3.03829177,3332.5,3331.9,0.30012]
[1732281396238,3.99415635,3332.5,3331.9,0.30012]
[1732281396425,0.99337635,3332.5,3332.0,0.30011]
[1732281396625,0.99337635,3332.5,3332.1,0.3001]
[1732281396838,0.99337635,3332.5,3332.2,0.3001]
[1732281397153,0.03751177,3332.5,3332.2,0.3001]
[1732281397307,3.51968405,3332.6,3332.2,0.3001]
[1732281397508,3.51968405,3332.6,3331.2,3.0]
[1732281397745,3.51968405,3332.6,3332.3,0.30009]
[1732281398107,3.51968405,3332.6,3332.1,0.3001]
[1732281398429,0.03751185,3332.5,3332.1,0.30011]
[1732281398635,0.03751185,3332.5,3331.3,3.3]
[1732281398636,0.7706,3332.3,3331.7,0.30014]
[1732281398859,3.0012,3332.0,3331.4,0.360018]
[1732281399024,3.65703988,3332.0,3331.4,0.30016]
[1732281399344,3.65703988,3332.0,3331.6,0.30015]
[1732281399345,0.65583988,3332.0,3331.6,0.30015]
[1732281399913,0.03751749,3331.9,3331.4,0.30016]
[1732281400112,0.0375175,3331.9,3331.6,0.30015]
[1732281400325,3.00126,3332.0,3331.3,0.30017]
[1732281400531,6.52072405,3332.2,3330.9,0.30021]
[1732281400736,3.00112,3332.1,3331.5,0.30016]
[1732281401044,0.03751864,3332.0,3331.5,0.30016]
[1732281401470,3.51968405,3331.8,3331.1,0.30019]
[1732281401647,3.5572037,3331.8,3330.9,0.30021]
[1732281401848,3.00165,3331.5,3330.9,0.30021]
[1732281402078,0.0375226,3331.6,3331.0,0.3002]
[1732281402372,0.0375226,3331.6,3331.1,0.30019]
[1732281402585,3.0390826,3331.6,3330.9,0.30021]
[1732281402751,0.0375226,3331.6,3330.9,0.30021]
[1732281402951,0.0375226,3331.6,3331.1,0.30019]
[1732281404069,0.8141,3332.0,3330.5,3.0]
[1732281404275,3.51968405,3332.2,3331.7,0.30014]
[1732281404584,3.51968405,3332.2,3331.8,0.30013]
[1732281404806,0.03751702,3332.1,3331.4,0.30016]
[1732281405017,0.46848543,3332.1,3331.6,0.30015]
[1732281405494,0.46848543,3332.1,3331.0,0.5999]
[1732281405657,0.46848543,3332.1,3331.4,0.30016]
[1732281405864,0.69892395,3332.0,3331.6,0.30014]
[1732281406096,0.69892395,3332.0,3331.0,0.5999]
[1732281406097,3.51968405,3332.5,3332.0,0.30011]
[1732281406278,3.51968405,3332.5,3332.4,0.30008]
[1732281406478,3.51968405,3332.5,3331.5,0.2997]
[1732281406796,3.51968405,3332.5,3332.2,0.30009]
[1732281407174,3.51968405,3332.5,3332.0,0.30011]
[1732281407370,3.51968405,3332.5,3331.8,0.30013]
[1732281407371,0.7279374,3332.4,3331.8,0.30013]
[1732281407586,0.03751448,3332.3,3331.8,0.30013]
[1732281407801,3.51968405,3332.1,3331.7,0.30014]
[1732281407962,0.65207141,3332.0,3331.8,0.30013]
[1732281408158,3.51968405,3332.1,3331.9,0.30012]
[1732281408467,3.51968405,3332.1,3331.2,0.30019]
[1732281408468,3.51968405,3332.5,3332.1,0.3001]
[1732281408800,3.51968405,3332.5,3331.8,0.30013]
[1732281409022,0.759,3332.6,3331.8,0.30013]
[1732281409023,0.759,3332.6,3332.5,0.30007]
[1732281409326,2.269777,3333.0,3332.8,0.30004]
[1732281410200,2.269777,3333.0,3332.6,0.30006]
[1732281410402,3.55719161,3332.9,3332.6,0.30006]
[1732281410609,3.00055,3332.8,3332.2,0.3001]
[1732281410927,3.51968405,3332.5,3332.3,0.30008]
[1732281411123,3.51968405,3332.5,3332.2,0.30009]
[1732281411421,0.03751283,3332.4,3332.0,0.30011]
[1732281411630,0.80711283,3332.4,3332.0,0.30011]
[1732281411921,0.80711283,3332.4,3331.8,0.30013]
[1732281411922,3.51968405,3332.1,3331.8,0.30013]
[1732281412122,3.55720118,3332.1,3331.8,0.30013]
[1732281412326,3.55720118,3332.1,3331.6,0.59985]
[1732281412327,3.55720118,3332.1,3331.6,0.59984]
[1732281413107,3.55720118,3332.1,3331.7,0.30014]
[1732281413303,0.65582212,3332.0,3331.7,0.30014]
[1732281413506,0.03751715,3332.0,3331.7,0.30014]
[1732281414216,0.03751715,3332.0,3331.6,0.59984]
[1732281414217,0.03751715,3332.0,3331.8,0.30013]
[1732281414742,0.7696,3332.4,3331.6,0.2997]
[1732281414939,0.7696,3332.4,3332.1,0.30011]
[1732281415144,1.23604198,3332.4,3332.0,0.60022]
[1732281415344,1.23604198,3332.4,3332.1,0.2997]
[1732281416043,1.19852841,3332.4,3332.1,0.2997]
[1732281416384,3.81034361,3332.3,3332.2,0.2997]
[1732281416552,0.80941361,3332.3,3332.2,0.2997]
[1732281417051,3.81034361,3332.3,3332.2,0.2997]
[1732281417340,3.00103,3332.2,3331.7,0.59984]
[1732281417542,0.03751721,3332.1,3331.7,0.59984]
[1732281417918,0.03751721,3332.1,3331.7,0.2997]
[1732281418260,0.45799436,3332.2,3332.1,0.2997]
[1732281418422,3.77044,3332.4,3332.1,0.2997]
[1732281418814,3.77049,3332.4,3332.1,0.2997]
[1732281419041,0.7665342,3332.3,3332.1,0.2997]
[1732281419342,0.7665342,3332.3,3331.9,0.2997]
[1732281419551,3.51968405,3332.1,3331.7,0.2997]
[1732281419708,3.00148,3331.7,3331.0,0.3002]
[1732281420055,3.55720599,3331.6,3331.0,0.6004]
[1732281420229,3.00168,3331.5,3331.0,0.3002]
[1732281420417,3.51968405,3331.6,3331.0,0.3002]
[1732281420623,3.00167,3331.5,3331.0,0.3002]
[1732281420819,3.00167,3331.5,3330.8,0.30022]
[1732281420820,0.03752556,3331.4,3330.8,0.30022]
[1732281421037,0.03752555,3331.4,3330.9,0.30021]
[1732281421352,0.30391955,3331.3,3330.7,0.30022]
[1732281421561,4.07606589,3331.6,3330.9,0.30021]
[1732281421562,0.03752596,3331.2,3330.9,0.30021]
[1732281421858,3.03918556,3331.5,3330.9,0.30021]
[1732281422166,3.00183,3331.3,3330.7,0.90015]
[1732281422320,0.03752557,3331.2,3330.9,0.30021]
[1732281422657,0.7738,3331.3,3330.7,0.59992]
[1732281422963,6.04144559,3331.2,3330.6,0.2997]
[1732281423270,3.55720964,3331.2,3330.7,0.30023]
[1732281423434,3.55720964,3331.2,3330.5,0.2997]
[1732281423435,0.7738,3331.3,3331.0,0.3002]
[1732281423620,0.7738,3331.3,3330.5,0.2997]
[1732281423621,0.7738,3331.3,3330.8,0.30022]
[1732281423825,0.03752649,3331.2,3330.8,0.30022]
[1732281424257,0.41883414,3331.2,3330.8,0.30022]
[1732281424457,0.03752649,3331.2,3330.6,0.30024]
[1732281424661,3.00233,3330.8,3330.1,0.2997]
[1732281424833,3.00233,3330.8,3329.9,0.3003]
[1732281424834,6.52224405,3330.5,3329.9,0.3003]
[1732281425180,3.04018384,3330.4,3329.8,0.30031]
[1732281425455,3.00287,3330.2,3329.6,0.30032]
[1732281425621,0.03754036,3330.1,3329.6,0.30032]
[1732281425825,0.7913,3330.0,3329.6,0.30032]
[1732281426069,0.03754037,3329.9,3329.5,0.30034]
[1732281426274,0.38318704,3329.8,3329.2,0.30037]
[1732281426424,3.79433,3330.0,3329.0,0.30038]
[1732281426425,3.55722853,3329.7,3329.0,0.30038]
[1732281426621,3.79098,3329.5,3328.9,0.30039]
[1732281426855,3.51968405,3329.3,3328.7,0.30041]
[1732281427062,0.03755085,3329.2,3328.7,0.30041]
[1732281427328,3.00379,3329.2,3328.6,0.30042]
[1732281427530,0.7875,3329.0,3327.1,0.75338893]
[1732281427775,0.7875,3329.0,3328.6,0.30042]
[1732281428062,0.03755456,3329.2,3328.7,0.3004]
[1732281428370,0.03755456,3329.2,3328.9,0.30039]
[1732281428371,0.03755144,3329.2,3328.9,0.30039]
[1732281428674,4.30718405,3329.3,3328.9,0.30039]
[1732281428971,0.7875,3329.6,3329.2,0.30037]
[1732281429558,0.43071841,3329.5,3329.2,0.30037]
[1732281429938,0.43071841,3329.5,3328.8,0.3004]
[1732281430142,3.51968405,3329.3,3328.8,0.3004]
[1732281430326,0.03755114,3329.2,3328.8,0.3004]
[1732281430527,3.51968405,3328.9,3328.4,0.30044]
[1732281430727,3.51968405,3328.5,3327.9,0.30048]
[1732281430973,0.8226,3328.3,3327.8,0.30049]
[1732281431124,0.8226,3328.3,3328.0,0.30047]
[1732281431332,0.8226,3328.3,3326.0,0.30065]
[1732281431333,0.8226,3328.7,3328.5,0.30043]
[1732281431547,0.8226,3328.7,3328.3,0.30045]
[1732281431758,0.8226,3328.7,3328.6,0.30042]
[1732281432172,0.8226,3328.7,3328.2,0.30045]
[1732281432369,3.86432808,3328.7,3327.1,0.30056]
[1732281432533,0.38643281,3328.6,3328.2,0.30045]
[1732281432730,0.86015808,3328.7,3328.0,0.30047]
[1732281432731,3.51968405,3328.5,3328.0,0.30047]
[1732281432933,0.0375606,3328.4,3327.9,0.30048]
[1732281433238,3.51968405,3328.1,3326.3,0.30062]
[1732281433446,0.03756307,3328.0,3327.7,0.3005]
[1732281433628,3.51968405,3328.1,3327.7,0.3005]
[1732281433629,3.5572471,3328.1,3327.7,0.3005]
[1732281433829,3.51968405,3328.9,3326.4,0.2997]
[1732281434066,0.7884,3328.7,3328.5,0.30043]
[1732281434276,0.82595629,3328.7,3328.2,0.30046]
[1732281434567,0.82595629,3328.7,3328.4,0.30044]
[1732281434730,0.82595629,3328.7,3328.6,0.30042]
[1732281434731,0.7884,3328.7,3328.6,0.30042]
[1732281434934,1.2192084,3328.7,3328.6,0.30042]
[1732281435138,1.2192084,3328.7,3328.2,0.30046]
[1732281435357,3.51968405,3328.5,3328.2,0.30046]
[1732281435551,0.03755962,3328.4,3328.2,0.30046]
[1732281435876,3.51499531,3328.5,3328.1,0.30046]
[1732281436039,0.03755969,3328.4,3327.6,0.30051]
[1732281436248,0.03755969,3328.4,3328.2,0.30046]
[1732281436448,0.03755991,3328.4,3328.2,0.30046]
[1732281436693,3.94533484,3328.5,3328.3,0.30045]
[1732281436986,3.94533484,3328.5,3328.1,0.55]
[1732281437141,0.43209296,3328.4,3328.1,0.30046]
[1732281437343,0.39453348,3328.4,3327.9,0.30048]
[1732281437580,0.03756185,3328.3,3328.1,0.30046]
[1732281437780,3.51499531,3328.5,3328.1,0.30046]
[1732281437963,3.51499531,3328.5,3328.0,0.55]
[1732281437964,3.55255604,3328.5,3328.0,0.55]
[1732281438278,3.55255604,3328.5,3328.2,0.30045]
[1732281438279,4.24575284,3328.5,3328.2,0.30045]
[1732281438590,3.51499531,3328.5,3328.3,0.30045]
[1732281439147,0.7884,3328.7,3328.6,0.30042]
[1732281439345,0.7884,3328.7,3328.5,0.55]
[1732281439541,0.03755612,3328.6,3327.8,0.30049]
[1732281439842,0.7884,3328.7,3328.4,0.30043]
[1732281440047,0.03755639,3328.6,3328.4,0.55]
[1732281440286,0.03755639,3328.6,3328.1,0.2997]
[1732281440287,3.51968405,3328.5,3328.1,0.2997]
[1732281440491,0.39328579,3328.4,3328.1,0.55]
[1732281440993,0.39328579,3328.4,3327.9,0.2997]
[1732281441141,3.51968405,3328.1,3327.9,0.2997]
[1732281441347,0.0375629,3328.0,3327.9,0.2997]
[1732281441569,0.0375629,3328.0,3327.6,0.30051]
[1732281441570,3.51968405,3328.1,3327.7,0.6002]
[1732281441771,0.79336601,3328.0,3327.7,0.2997]
[1732281441961,4.15020442,3328.0,3327.7,0.2997]
[1732281442156,4.15020442,3328.0,3327.2,0.2997]
[1732281442356,3.51968405,3327.6,3327.2,0.60025]
[1732281442573,0.03756964,3327.5,3327.4,0.2997]
[1732281442783,3.51968405,3327.6,3327.5,0.60022]
[1732281442984,4.27548405,3328.0,3327.5,0.60022]
[1732281443185,5.04106515,3328.0,3327.5,0.60022]
[1732281443387,5.04106515,3328.0,3327.5,0.2997]
[1732281443588,5.00349746,3328.0,3327.5,0.2997]
[1732281443856,3.36019404,3328.4,3328.2,0.55]
[1732281443857,4.28208405,3328.4,3328.2,0.55]